[Event "December 12 Late 2023"]
[Site "https://www.chess.com"]
[Date "2023.12.12"]
[Round "2"]
[White "MasterofMasters2006"]
[Black "Marin Posada, Sebastian"]
[Result "1/2-1/2"]
[Board "156"]
[TimeControl "180+1"]
[BlackFideId "4402782"]
[WhiteElo "2058"]
[BlackElo "2412"]
[BlackTeam "COL"]
[WhiteClock "0:00:07"]
[BlackClock "0:00:02"]

1. d4 {[%clk 0:03:00]}  e6 {[%clk 0:02:58]} 2. c4 {[%clk 0:03:00]}  b6 {[%clk 0:02:56]} 3. Nf3 {[%clk 0:02:57]}  Bb4+ {[%clk 0:02:51]} 4. Bd2 {[%clk 0:02:56]}  Be7 {[%clk 0:02:50]} 5. g3 {[%clk 0:02:56]}  Ba6 {[%clk 0:02:47]} 6. Qc2 {[%clk 0:02:52]}  Nf6 {[%clk 0:02:42]} 7. Bg2 {[%clk 0:02:52]}  c6 {[%clk 0:02:40]} 8. O-O {[%clk 0:02:50]}  d5 {[%clk 0:02:37]} 9. Ne5 {[%clk 0:02:48]}  O-O {[%clk 0:02:35]} 10. b3 {[%clk 0:02:46]}  Nfd7 {[%clk 0:02:32]} 11. Nxd7 {[%clk 0:02:32]}  Nxd7 {[%clk 0:02:33]} 12. Bf4 {[%clk 0:02:29]}  Rc8 {[%clk 0:02:25]} 13. Nd2 {[%clk 0:02:28]}  Nf6 {[%clk 0:02:13]} 14. Rad1 {[%clk 0:02:15]}  Bd6 {[%clk 0:02:03]} 15. Bxd6 {[%clk 0:02:14]}  Qxd6 {[%clk 0:02:04]} 16. e4 {[%clk 0:02:12]}  dxe4 {[%clk 0:01:55]} 17. Nxe4 {[%clk 0:02:11]}  Nxe4 {[%clk 0:01:54]} 18. Bxe4 {[%clk 0:02:12]}  g6 {[%clk 0:01:51]} 19. Rfe1 {[%clk 0:02:12]}  Rfd8 {[%clk 0:01:48]} 20. Qe2 {[%clk 0:01:57]}  Qa3 {[%clk 0:01:32]} 21. Rd2 {[%clk 0:01:55]}  Rc7 {[%clk 0:01:31]} 22. Red1 {[%clk 0:01:53]}  Bb7 {[%clk 0:01:24]} 23. Qf3 {[%clk 0:01:52]}  Qd6 {[%clk 0:01:09]} 24. d5 {[%clk 0:01:29]}  cxd5 {[%clk 0:01:04]} 25. cxd5 {[%clk 0:01:29]}  e5 {[%clk 0:00:41]} 26. g4 {[%clk 0:01:21]}  f6 {[%clk 0:00:37]} 27. Qd3 {[%clk 0:01:17]}  Kg7 {[%clk 0:00:35]} 28. h3 {[%clk 0:01:06]}  Rdc8 {[%clk 0:00:35]} 29. Re1 {[%clk 0:01:04]}  Rc3 {[%clk 0:00:34]} 30. Qf1 {[%clk 0:00:59]}  a6 {[%clk 0:00:25]} 31. Rdd1 {[%clk 0:00:56]}  b5 {[%clk 0:00:24]} 32. Rc1 {[%clk 0:00:57]}  b4 {[%clk 0:00:24]} 33. Rcd1 {[%clk 0:00:48]}  a5 {[%clk 0:00:22]} 34. Qb5 {[%clk 0:00:46]}  Ba6 {[%clk 0:00:20]} 35. Qxa5 {[%clk 0:00:40]}  Rxh3 {[%clk 0:00:20]} 36. Bg2 {[%clk 0:00:30]}  Rhc3 {[%clk 0:00:20]} 37. Bf1 {[%clk 0:00:21]}  Bxf1 {[%clk 0:00:18]} 38. Kxf1 {[%clk 0:00:22]}  R8c7 {[%clk 0:00:14]} 39. Qa8 {[%clk 0:00:18]}  h6 {[%clk 0:00:14]} 40. Qe8 {[%clk 0:00:10]}  Rc2 {[%clk 0:00:13]} 41. Qe6 {[%clk 0:00:07]}  Qxe6 {[%clk 0:00:08]} 42. dxe6 {[%clk 0:00:08]}  Re7 {[%clk 0:00:06]} 43. Rd7 {[%clk 0:00:04]}  Rxd7 {[%clk 0:00:06]} 44. exd7 {[%clk 0:00:05]}  Rd2 {[%clk 0:00:06]} 45. Re4 {[%clk 0:00:06]}  Rxd7 {[%clk 0:00:03]} 46. Rxb4 {[%clk 0:00:06]}  Rd2 {[%clk 0:00:03]} 47. a4 {[%clk 0:00:06]}  Ra2 {[%clk 0:00:03]} 48. Rb7+ {[%clk 0:00:06]}  Kf8 {[%clk 0:00:03]} 49. Rb6 {[%clk 0:00:05]}  Ke7 {[%clk 0:00:03]} 50. Rb7+ {[%clk 0:00:05]}  Ke6 {[%clk 0:00:03]} 51. Rb6+ {[%clk 0:00:06]}  Ke7 {[%clk 0:00:03]} 52. Rb7+ {[%clk 0:00:07]}  Ke6 {[%clk 0:00:03]} 53. Rb6+ {[%clk 0:00:07]}  Ke7 {[%clk 0:00:02]} 1/2-1/2

[Event "December 12 Late 2023"]
[Site "https://www.chess.com"]
[Date "2023.12.12"]
[Round "2"]
[White "Desideri, Ricardo Maruchi"]
[Black "Marchesich, Giovanni"]
[Result "0-1"]
[Board "161"]
[TimeControl "180+1"]
[WhiteFideId "2110440"]
[BlackFideId "2824790"]
[WhiteElo "2022"]
[BlackElo "2402"]
[WhiteTeam "BRA"]
[BlackTeam "ITA"]
[WhiteClock "0:00:35"]
[BlackClock "0:01:44"]

1. e4 {[%clk 0:02:58]}  e5 {[%clk 0:02:59]} 2. f4 {[%clk 0:02:57]}  d5 {[%clk 0:02:58]} 3. exd5 {[%clk 0:02:56]}  exf4 {[%clk 0:02:58]} 4. Nf3 {[%clk 0:02:55]}  Bd6 {[%clk 0:02:58]} 5. d3 {[%clk 0:02:26]}  Nf6 {[%clk 0:02:57]} 6. c4 {[%clk 0:02:25]}  O-O {[%clk 0:02:56]} 7. b3 {[%clk 0:02:24]}  c6 {[%clk 0:02:54]} 8. dxc6 {[%clk 0:02:22]}  Nxc6 {[%clk 0:02:55]} 9. Bb2 {[%clk 0:02:21]}  Bg4 {[%clk 0:02:51]} 10. Be2 {[%clk 0:02:19]}  Bc5 {[%clk 0:02:02]} 11. d4 {[%clk 0:02:14]}  Bb4+ {[%clk 0:02:02]} 12. Nbd2 {[%clk 0:01:57]}  Bxf3 {[%clk 0:02:02]} 13. Bxf3 {[%clk 0:01:51]}  Nxd4 {[%clk 0:01:59]} 14. Kf2 {[%clk 0:00:57]}  Qb6 {[%clk 0:01:49]} 15. Ne4 {[%clk 0:00:36]}  Nxf3+ {[%clk 0:01:44]} 16. Kxf3 {[%clk 0:00:35]}  Qe3# {[%clk 0:01:44]} 0-1

[Event "December 12 Late 2023"]
[Site "https://www.chess.com"]
[Date "2023.12.12"]
[Round "3"]
[White "Troff, Kayden"]
[Black "Duda, Jan-Krzysztof"]
[Result "0-1"]
[Board "5"]
[TimeControl "180+1"]
[WhiteFideId "2047896"]
[BlackFideId "1170546"]
[WhiteElo "2789"]
[BlackElo "3062"]
[WhiteTeam "USA"]
[BlackTeam "POL"]
[WhiteClock "0:00:01"]
[BlackClock "0:00:09"]

1. d4 {[%clk 0:03:00]}  d5 {[%clk 0:02:57]} 2. Nf3 {[%clk 0:03:01]}  Nf6 {[%clk 0:02:57]} 3. Bf4 {[%clk 0:03:02]}  c5 {[%clk 0:02:54]} 4. e3 {[%clk 0:03:01]}  Nc6 {[%clk 0:02:54]} 5. Nc3 {[%clk 0:03:01]}  Nh5 {[%clk 0:02:43]} 6. Be5 {[%clk 0:02:48]}  e6 {[%clk 0:02:35]} 7. Bb5 {[%clk 0:02:23]}  Bd7 {[%clk 0:02:30]} 8. Bxc6 {[%clk 0:02:22]}  Bxc6 {[%clk 0:02:31]} 9. O-O {[%clk 0:02:22]}  b6 {[%clk 0:02:20]} 10. Re1 {[%clk 0:02:15]}  Be7 {[%clk 0:02:20]} 11. e4 {[%clk 0:02:14]}  dxe4 {[%clk 0:02:17]} 12. Nxe4 {[%clk 0:02:14]}  Nf6 {[%clk 0:02:11]} 13. Nxf6+ {[%clk 0:01:41]}  gxf6 {[%clk 0:02:12]} 14. Bg3 {[%clk 0:01:41]}  c4 {[%clk 0:02:03]} 15. c3 {[%clk 0:01:22]}  Qd5 {[%clk 0:01:53]} 16. b3 {[%clk 0:01:04]}  Rc8 {[%clk 0:01:41]} 17. Qe2 {[%clk 0:01:01]}  Bb7 {[%clk 0:01:39]} 18. b4 {[%clk 0:00:45]}  Rg8 {[%clk 0:01:35]} 19. Qe3 {[%clk 0:00:41]}  h5 {[%clk 0:01:33]} 20. Qh6 {[%clk 0:00:39]}  Kd7 {[%clk 0:01:24]} 21. h4 {[%clk 0:00:30]}  Rg6 {[%clk 0:01:17]} 22. Qf4 {[%clk 0:00:25]}  Rg4 {[%clk 0:01:10]} 23. Qh6 {[%clk 0:00:23]}  Rcg8 {[%clk 0:01:09]} 24. Kh2 {[%clk 0:00:20]}  R4g6 {[%clk 0:00:43]} 25. Qh7 {[%clk 0:00:18]}  Ke8 {[%clk 0:00:40]} 26. Re3 {[%clk 0:00:14]}  Bf8 {[%clk 0:00:36]} 27. Rae1 {[%clk 0:00:10]}  R6g7 {[%clk 0:00:09]} 28. Qh6 {[%clk 0:00:10]}  Rxg3 {[%clk 0:00:09]} 29. Qxf6 {[%clk 0:00:08]}  Rxg2+ {[%clk 0:00:09]} 30. Kh3 {[%clk 0:00:06]}  R2g6 {[%clk 0:00:09]} 31. Qf4 {[%clk 0:00:04]}  Bd6 {[%clk 0:00:09]} 32. Re5 {[%clk 0:00:04]}  Qxf3+ {[%clk 0:00:08]} 33. Qxf3 {[%clk 0:00:01]}  Bxf3 {[%clk 0:00:09]} 0-1

[Event "December 12 Late 2023"]
[Site "https://www.chess.com"]
[Date "2023.12.12"]
[Round "3"]
[White "Fedoseev, Vladimir"]
[Black "Ghasi, Ameet K"]
[Result "0-1"]
[Board "6"]
[TimeControl "180+1"]
[WhiteFideId "24130737"]
[BlackFideId "409200"]
[WhiteElo "3060"]
[BlackElo "2784"]
[WhiteTeam "SLO"]
[BlackTeam "ENG"]
[WhiteClock "0:00:11"]
[BlackClock "0:00:03"]

1. e4 {[%clk 0:02:13]}  g6 {[%clk 0:02:59]} 2. d4 {[%clk 0:02:12]}  d6 {[%clk 0:03:00]} 3. Nf3 {[%clk 0:02:12]}  Bg7 {[%clk 0:03:00]} 4. h3 {[%clk 0:02:09]}  Nf6 {[%clk 0:03:00]} 5. Bd3 {[%clk 0:02:09]}  O-O {[%clk 0:03:01]} 6. O-O {[%clk 0:02:09]}  Nc6 {[%clk 0:03:01]} 7. a3 {[%clk 0:02:04]}  Nd7 {[%clk 0:02:57]} 8. c3 {[%clk 0:02:02]}  e5 {[%clk 0:02:54]} 9. Bc2 {[%clk 0:01:52]}  b6 {[%clk 0:02:38]} 10. Re1 {[%clk 0:01:49]}  Bb7 {[%clk 0:02:38]} 11. Bg5 {[%clk 0:01:46]}  Qe8 {[%clk 0:02:37]} 12. Bh4 {[%clk 0:01:36]}  Bf6 {[%clk 0:02:34]} 13. Bxf6 {[%clk 0:01:30]}  Nxf6 {[%clk 0:02:35]} 14. Nbd2 {[%clk 0:01:30]}  a6 {[%clk 0:02:26]} 15. Nc4 {[%clk 0:01:22]}  Qe7 {[%clk 0:02:22]} 16. Ne3 {[%clk 0:01:19]}  Rae8 {[%clk 0:02:06]} 17. Nd5 {[%clk 0:00:58]}  Qd8 {[%clk 0:02:05]} 18. c4 {[%clk 0:00:59]}  Nd7 {[%clk 0:01:10]} 19. Ba4 {[%clk 0:00:53]}  Kg7 {[%clk 0:01:00]} 20. b4 {[%clk 0:00:48]}  Ncb8 {[%clk 0:00:54]} 21. dxe5 {[%clk 0:00:41]}  dxe5 {[%clk 0:00:53]} 22. Ra2 {[%clk 0:00:38]}  c6 {[%clk 0:00:49]} 23. Ne3 {[%clk 0:00:38]}  Qc7 {[%clk 0:00:49]} 24. Rd2 {[%clk 0:00:33]}  Nf6 {[%clk 0:00:48]} 25. Ng4 {[%clk 0:00:20]}  Nxg4 {[%clk 0:00:41]} 26. hxg4 {[%clk 0:00:20]}  Bc8 {[%clk 0:00:42]} 27. Nh2 {[%clk 0:00:15]}  Be6 {[%clk 0:00:36]} 28. Qc2 {[%clk 0:00:14]}  Rd8 {[%clk 0:00:36]} 29. Red1 {[%clk 0:00:14]}  Rxd2 {[%clk 0:00:37]} 30. Rxd2 {[%clk 0:00:14]}  Rd8 {[%clk 0:00:37]} 31. Rxd8 {[%clk 0:00:14]}  Qxd8 {[%clk 0:00:38]} 32. Nf3 {[%clk 0:00:14]}  Qc7 {[%clk 0:00:35]} 33. g5 {[%clk 0:00:14]}  Nd7 {[%clk 0:00:35]} 34. Qc3 {[%clk 0:00:12]}  Qd6 {[%clk 0:00:31]} 35. Bc2 {[%clk 0:00:10]}  Bg4 {[%clk 0:00:30]} 36. Ne1 {[%clk 0:00:09]}  Qd4 {[%clk 0:00:22]} 37. Qxd4 {[%clk 0:00:09]}  exd4 {[%clk 0:00:23]} 38. Ba4 {[%clk 0:00:07]}  Ne5 {[%clk 0:00:19]} 39. c5 {[%clk 0:00:07]}  b5 {[%clk 0:00:11]} 40. Bc2 {[%clk 0:00:06]}  Be2 {[%clk 0:00:08]} 41. f4 {[%clk 0:00:02]}  Nc4 {[%clk 0:00:05]} 42. Kf2 {[%clk 0:00:02]}  Bg4 {[%clk 0:00:06]} 43. Bb3 {[%clk 0:00:01]}  Nxa3 {[%clk 0:00:05]} 44. Nd3 {[%clk 0:00:02]}  Bd7 {[%clk 0:00:05]} 45. Ne5 {[%clk 0:00:02]}  Be8 {[%clk 0:00:05]} 46. Ke2 {[%clk 0:00:02]}  Nb1 {[%clk 0:00:06]} 47. Kd3 {[%clk 0:00:01]}  Nc3 {[%clk 0:00:06]} 48. Nf3 {[%clk 0:00:02]}  Na4 {[%clk 0:00:04]} 49. Bxa4 {[%clk 0:00:02]}  bxa4 {[%clk 0:00:04]} 50. Kxd4 {[%clk 0:00:02]}  f6 {[%clk 0:00:05]} 51. gxf6+ {[%clk 0:00:02]}  Kxf6 {[%clk 0:00:06]} 52. Kc3 {[%clk 0:00:02]}  h6 {[%clk 0:00:06]} 53. Kb2 {[%clk 0:00:03]}  g5 {[%clk 0:00:07]} 54. fxg5+ {[%clk 0:00:01]}  hxg5 {[%clk 0:00:07]} 55. Ka3 {[%clk 0:00:02]}  g4 {[%clk 0:00:08]} 56. Nd2 {[%clk 0:00:02]}  Ke5 {[%clk 0:00:09]} 57. Kxa4 {[%clk 0:00:03]}  Kd4 {[%clk 0:00:08]} 58. Ka5 {[%clk 0:00:04]}  Ke3 {[%clk 0:00:05]} 59. Nc4+ {[%clk 0:00:04]}  Kf2 {[%clk 0:00:06]} 60. Ne5 {[%clk 0:00:05]}  g3 {[%clk 0:00:06]} 61. Nd3+ {[%clk 0:00:05]}  Kxg2 {[%clk 0:00:06]} 62. Kxa6 {[%clk 0:00:06]}  Kf3 {[%clk 0:00:06]} 63. Ne5+ {[%clk 0:00:07]}  Kxe4 {[%clk 0:00:07]} 64. Ng4 {[%clk 0:00:07]}  g2 {[%clk 0:00:07]} 65. Nf6+ {[%clk 0:00:07]}  Kd4 {[%clk 0:00:06]} 66. Nxe8 {[%clk 0:00:06]}  g1=Q {[%clk 0:00:07]} 67. Nd6 {[%clk 0:00:07]}  Kc3 {[%clk 0:00:06]} 68. Kb6 {[%clk 0:00:06]}  Kxb4 {[%clk 0:00:05]} 69. Nb7 {[%clk 0:00:07]}  Qd4 {[%clk 0:00:05]} 70. Kxc6 {[%clk 0:00:07]}  Qe4+ {[%clk 0:00:05]} 71. Kb6 {[%clk 0:00:07]}  Qe3 {[%clk 0:00:04]} 72. Kc6 {[%clk 0:00:08]}  Kc4 {[%clk 0:00:03]} 73. Kb6 {[%clk 0:00:09]}  Qg1 {[%clk 0:00:01]} 74. Kc6 {[%clk 0:00:09]}  Qg2+ {[%clk 0:00:02]} 75. Kc7 {[%clk 0:00:08]}  Qg6 {[%clk 0:00:03]} 76. c6 {[%clk 0:00:08]}  Kb5 {[%clk 0:00:03]} 77. Nd8 {[%clk 0:00:09]}  Qg7+ {[%clk 0:00:03]} 78. Kd6 {[%clk 0:00:08]}  Qg6+ {[%clk 0:00:02]} 79. Ne6 {[%clk 0:00:08]}  Qf6 {[%clk 0:00:02]} 80. c7 {[%clk 0:00:09]}  Qc3 {[%clk 0:00:02]} 81. Kd7 {[%clk 0:00:09]}  Qc6+ {[%clk 0:00:03]} 82. Kc8 {[%clk 0:00:09]}  Qxe6+ {[%clk 0:00:03]} 83. Kb7 {[%clk 0:00:09]}  Qc6+ {[%clk 0:00:03]} 84. Kb8 {[%clk 0:00:10]}  Qb6+ {[%clk 0:00:04]} 85. Ka8 {[%clk 0:00:10]}  Qc6+ {[%clk 0:00:04]} 86. Kb8 {[%clk 0:00:11]}  Qd6 {[%clk 0:00:03]} 87. Kb7 {[%clk 0:00:11]}  Qd7 {[%clk 0:00:03]} 88. Kb8 {[%clk 0:00:11]}  Kb6 {[%clk 0:00:03]} 89. c8=Q {[%clk 0:00:11]}  Qa7# {[%clk 0:00:03]} 0-1

[Event "December 12 Late 2023"]
[Site "https://www.chess.com"]
[Date "2023.12.12"]
[Round "3"]
[White "Wieczorek, Oskar"]
[Black "Pranav, V"]
[Result "1/2-1/2"]
[Board "9"]
[TimeControl "180+1"]
[WhiteFideId "1133950"]
[BlackFideId "25060783"]
[WhiteElo "2767"]
[BlackElo "3054"]
[WhiteTeam "POL"]
[BlackTeam "IND"]
[WhiteClock "0:00:05"]
[BlackClock "0:00:03"]

1. e4 {[%clk 0:03:00]}  e5 {[%clk 0:02:59]} 2. Nf3 {[%clk 0:03:01]}  Nc6 {[%clk 0:02:59]} 3. Nc3 {[%clk 0:03:01]}  Nf6 {[%clk 0:02:59]} 4. h3 {[%clk 0:03:01]}  Bb4 {[%clk 0:02:54]} 5. Nd5 {[%clk 0:03:01]}  Be7 {[%clk 0:02:54]} 6. d3 {[%clk 0:02:41]}  O-O {[%clk 0:02:54]} 7. c4 {[%clk 0:02:36]}  d6 {[%clk 0:02:53]} 8. Be2 {[%clk 0:02:36]}  Nxd5 {[%clk 0:02:52]} 9. cxd5 {[%clk 0:02:35]}  Nb8 {[%clk 0:02:53]} 10. d4 {[%clk 0:02:34]}  f5 {[%clk 0:02:37]} 11. dxe5 {[%clk 0:01:54]}  fxe4 {[%clk 0:02:36]} 12. Nd4 {[%clk 0:01:54]}  dxe5 {[%clk 0:02:29]} 13. Ne6 {[%clk 0:01:55]}  Bxe6 {[%clk 0:02:22]} 14. dxe6 {[%clk 0:01:56]}  Nc6 {[%clk 0:02:23]} 15. O-O {[%clk 0:01:52]}  Nd4 {[%clk 0:02:23]} 16. a4 {[%clk 0:01:34]}  Qd5 {[%clk 0:02:18]} 17. Be3 {[%clk 0:01:28]}  Nxe2+ {[%clk 0:02:10]} 18. Qxe2 {[%clk 0:01:29]}  Qxe6 {[%clk 0:02:11]} 19. Qb5 {[%clk 0:01:23]}  b6 {[%clk 0:02:04]} 20. Rfd1 {[%clk 0:01:22]}  Rfd8 {[%clk 0:01:54]} 21. Qa6 {[%clk 0:01:07]}  Rd3 {[%clk 0:01:36]} 22. Rxd3 {[%clk 0:01:04]}  exd3 {[%clk 0:01:37]} 23. Qxd3 {[%clk 0:01:04]}  a5 {[%clk 0:01:30]} 24. Qe4 {[%clk 0:01:00]}  Rd8 {[%clk 0:01:24]} 25. Rc1 {[%clk 0:00:53]}  Rd7 {[%clk 0:01:19]} 26. Rc6 {[%clk 0:00:43]}  Bd6 {[%clk 0:01:11]} 27. h4 {[%clk 0:00:32]}  h6 {[%clk 0:01:06]} 28. g3 {[%clk 0:00:32]}  Rf7 {[%clk 0:00:58]} 29. Kg2 {[%clk 0:00:32]}  Qd7 {[%clk 0:00:49]} 30. Rc1 {[%clk 0:00:30]}  Qf5 {[%clk 0:00:47]} 31. Qxf5 {[%clk 0:00:24]}  Rxf5 {[%clk 0:00:48]} 32. Rc6 {[%clk 0:00:23]}  Rf6 {[%clk 0:00:48]} 33. g4 {[%clk 0:00:15]}  Kf7 {[%clk 0:00:46]} 34. g5 {[%clk 0:00:15]}  hxg5 {[%clk 0:00:46]} 35. hxg5 {[%clk 0:00:16]}  Re6 {[%clk 0:00:42]} 36. Kf3 {[%clk 0:00:16]}  e4+ {[%clk 0:00:32]} 37. Kg4 {[%clk 0:00:17]}  g6 {[%clk 0:00:32]} 38. Rc1 {[%clk 0:00:16]}  Be5 {[%clk 0:00:32]} 39. Rh1 {[%clk 0:00:15]}  Ke7 {[%clk 0:00:29]} 40. b3 {[%clk 0:00:10]}  Kd6 {[%clk 0:00:25]} 41. Rh7 {[%clk 0:00:06]}  Kc6 {[%clk 0:00:24]} 42. Rf7 {[%clk 0:00:06]}  Bd6 {[%clk 0:00:22]} 43. Rf6 {[%clk 0:00:04]}  Kd5 {[%clk 0:00:23]} 44. Rf7 {[%clk 0:00:04]}  Be5 {[%clk 0:00:13]} 45. Bf4 {[%clk 0:00:04]}  c6 {[%clk 0:00:08]} 46. Rb7 {[%clk 0:00:02]}  c5 {[%clk 0:00:07]} 47. Bxe5 {[%clk 0:00:02]}  Kxe5 {[%clk 0:00:08]} 48. Rf7 {[%clk 0:00:02]}  Kd5 {[%clk 0:00:07]} 49. Rf6 {[%clk 0:00:02]}  Rxf6 {[%clk 0:00:05]} 50. gxf6 {[%clk 0:00:03]}  Ke6 {[%clk 0:00:06]} 51. Kg5 {[%clk 0:00:04]}  Kf7 {[%clk 0:00:07]} 52. Kf4 {[%clk 0:00:04]}  Kxf6 {[%clk 0:00:07]} 53. Kxe4 {[%clk 0:00:05]}  g5 {[%clk 0:00:07]} 54. Kf3 {[%clk 0:00:03]}  Kf5 {[%clk 0:00:07]} 55. Kg3 {[%clk 0:00:04]}  Ke5 {[%clk 0:00:04]} 56. Kg4 {[%clk 0:00:04]}  Kf6 {[%clk 0:00:04]} 57. Kg3 {[%clk 0:00:04]}  Kf5 {[%clk 0:00:04]} 58. f3 {[%clk 0:00:04]}  Ke5 {[%clk 0:00:04]} 59. Kg4 {[%clk 0:00:04]}  Kf6 {[%clk 0:00:04]} 60. Kh3 {[%clk 0:00:03]}  Kf5 {[%clk 0:00:04]} 61. Kg3 {[%clk 0:00:03]}  Ke5 {[%clk 0:00:03]} 62. Kg4 {[%clk 0:00:04]}  Kf6 {[%clk 0:00:03]} 63. Kh3 {[%clk 0:00:04]}  Kg6 {[%clk 0:00:03]} 64. Kg4 {[%clk 0:00:04]}  Kh6 {[%clk 0:00:03]} 65. Kg3 {[%clk 0:00:04]}  Kg6 {[%clk 0:00:03]} 66. Kg4 {[%clk 0:00:05]}  Kf6 {[%clk 0:00:03]} 1/2-1/2

[Event "December 12 Late 2023"]
[Site "https://www.chess.com"]
[Date "2023.12.12"]
[Round "3"]
[White "Adewumi, Tanitoluwa"]
[Black "Drygalov, Andrey"]
[Result "0-1"]
[Board "13"]
[TimeControl "180+1"]
[WhiteFideId "30966396"]
[BlackFideId "24171735"]
[WhiteElo "2748"]
[BlackElo "3006"]
[WhiteTeam "USA"]
[BlackTeam "RUS"]
[WhiteClock "0:00:06"]
[BlackClock "0:00:10"]

1. e4 {[%clk 0:02:56]}  c5 {[%clk 0:02:59]} 2. Nf3 {[%clk 0:02:55]}  d6 {[%clk 0:03:00]} 3. Bb5+ {[%clk 0:02:55]}  Nd7 {[%clk 0:03:00]} 4. c3 {[%clk 0:02:55]}  Nf6 {[%clk 0:02:58]} 5. Bd3 {[%clk 0:02:56]}  g6 {[%clk 0:02:49]} 6. Bc2 {[%clk 0:02:55]}  Bg7 {[%clk 0:02:49]} 7. d4 {[%clk 0:02:56]}  O-O {[%clk 0:02:49]} 8. O-O {[%clk 0:02:56]}  e5 {[%clk 0:02:44]} 9. dxe5 {[%clk 0:02:55]}  dxe5 {[%clk 0:02:44]} 10. c4 {[%clk 0:02:55]}  Nh5 {[%clk 0:02:17]} 11. Nc3 {[%clk 0:02:46]}  Nf4 {[%clk 0:02:16]} 12. Nd5 {[%clk 0:02:44]}  Nxd5 {[%clk 0:02:15]} 13. cxd5 {[%clk 0:02:39]}  Nb6 {[%clk 0:02:09]} 14. Be3 {[%clk 0:02:38]}  Qd6 {[%clk 0:02:07]} 15. Rc1 {[%clk 0:02:25]}  Nc4 {[%clk 0:02:04]} 16. Bxc5 {[%clk 0:02:25]}  Qxc5 {[%clk 0:02:03]} 17. Bd3 {[%clk 0:02:25]}  b5 {[%clk 0:01:24]} 18. b3 {[%clk 0:02:25]}  Ba6 {[%clk 0:01:25]} 19. bxc4 {[%clk 0:02:11]}  bxc4 {[%clk 0:01:25]} 20. Bxc4 {[%clk 0:02:11]}  Bxc4 {[%clk 0:01:21]} 21. Nd2 {[%clk 0:02:11]}  Qa5 {[%clk 0:01:01]} 22. Nxc4 {[%clk 0:02:09]}  Qxa2 {[%clk 0:01:02]} 23. Qd3 {[%clk 0:02:09]}  Qa6 {[%clk 0:01:00]} 24. Ra1 {[%clk 0:02:06]}  Qb7 {[%clk 0:00:58]} 25. Rfb1 {[%clk 0:02:05]}  Qd7 {[%clk 0:00:58]} 26. h3 {[%clk 0:02:00]}  Rfc8 {[%clk 0:00:56]} 27. Na5 {[%clk 0:01:55]}  Bf8 {[%clk 0:00:55]} 28. Rb7 {[%clk 0:01:45]}  Rc7 {[%clk 0:00:48]} 29. Rxc7 {[%clk 0:01:42]}  Qxc7 {[%clk 0:00:49]} 30. Nc6 {[%clk 0:01:43]}  a5 {[%clk 0:00:48]} 31. Qb5 {[%clk 0:01:29]}  f5 {[%clk 0:00:39]} 32. Rxa5 {[%clk 0:01:24]}  Rxa5 {[%clk 0:00:39]} 33. Qxa5 {[%clk 0:01:24]}  Qb7 {[%clk 0:00:29]} 34. exf5 {[%clk 0:01:04]}  Qb1+ {[%clk 0:00:29]} 35. Kh2 {[%clk 0:01:04]}  Qxf5 {[%clk 0:00:30]} 36. Qd2 {[%clk 0:01:04]}  Bd6 {[%clk 0:00:28]} 37. g3 {[%clk 0:01:01]}  e4 {[%clk 0:00:28]} 38. Qd4 {[%clk 0:00:30]}  h5 {[%clk 0:00:26]} 39. Qa7 {[%clk 0:00:10]}  h4 {[%clk 0:00:20]} 40. Ne7+ {[%clk 0:00:10]}  Bxe7 {[%clk 0:00:20]} 41. Qxe7 {[%clk 0:00:11]}  Qxf2+ {[%clk 0:00:21]} 42. Kh1 {[%clk 0:00:11]}  Qe1+ {[%clk 0:00:21]} 43. Kg2 {[%clk 0:00:10]}  Qxg3+ {[%clk 0:00:22]} 44. Kf1 {[%clk 0:00:11]}  Qxh3+ {[%clk 0:00:22]} 45. Kg1 {[%clk 0:00:11]}  Qg4+ {[%clk 0:00:20]} 46. Kh2 {[%clk 0:00:08]}  Qg3+ {[%clk 0:00:15]} 47. Kh1 {[%clk 0:00:08]}  Qe1+ {[%clk 0:00:14]} 48. Kg2 {[%clk 0:00:08]}  Qd2+ {[%clk 0:00:14]} 49. Kh3 {[%clk 0:00:09]}  Qxd5 {[%clk 0:00:14]} 50. Kxh4 {[%clk 0:00:04]}  Qh5+ {[%clk 0:00:14]} 51. Kg3 {[%clk 0:00:04]}  Qf3+ {[%clk 0:00:15]} 52. Kh4 {[%clk 0:00:04]}  Qf4+ {[%clk 0:00:16]} 53. Kh3 {[%clk 0:00:05]}  e3 {[%clk 0:00:16]} 54. Qe8+ {[%clk 0:00:05]}  Kg7 {[%clk 0:00:16]} 55. Qe7+ {[%clk 0:00:04]}  Kh6 {[%clk 0:00:16]} 56. Qe8 {[%clk 0:00:02]}  Qf3+ {[%clk 0:00:14]} 57. Kh2 {[%clk 0:00:02]}  Kg5 {[%clk 0:00:10]} 58. Qe5+ {[%clk 0:00:02]}  Kg4 {[%clk 0:00:07]} 59. Qe6+ {[%clk 0:00:02]}  Kh5 {[%clk 0:00:08]} 60. Qe5+ {[%clk 0:00:03]}  Kh6 {[%clk 0:00:04]} 61. Qh8+ {[%clk 0:00:03]}  Kg5 {[%clk 0:00:05]} 62. Qe5+ {[%clk 0:00:03]}  Qf5 {[%clk 0:00:05]} 63. Qxe3+ {[%clk 0:00:03]}  Qf4+ {[%clk 0:00:05]} 64. Qg3+ {[%clk 0:00:03]}  Kf5 {[%clk 0:00:04]} 65. Kh3 {[%clk 0:00:02]}  Qxg3+ {[%clk 0:00:04]} 66. Kxg3 {[%clk 0:00:03]}  Kg5 {[%clk 0:00:05]} 67. Kg2 {[%clk 0:00:03]}  Kg4 {[%clk 0:00:06]} 68. Kg1 {[%clk 0:00:03]}  Kg3 {[%clk 0:00:06]} 69. Kf1 {[%clk 0:00:04]}  g5 {[%clk 0:00:06]} 70. Kg1 {[%clk 0:00:04]}  g4 {[%clk 0:00:07]} 71. Kh1 {[%clk 0:00:04]}  Kf2 {[%clk 0:00:07]} 72. Kh2 {[%clk 0:00:05]}  g3+ {[%clk 0:00:08]} 73. Kh3 {[%clk 0:00:05]}  g2 {[%clk 0:00:09]} 74. Kh2 {[%clk 0:00:05]}  g1=Q+ {[%clk 0:00:09]} 75. Kh3 {[%clk 0:00:06]}  Qg5 {[%clk 0:00:09]} 76. Kh2 {[%clk 0:00:06]}  Qg2# {[%clk 0:00:10]} 0-1

[Event "December 12 Late 2023"]
[Site "https://www.chess.com"]
[Date "2023.12.12"]
[Round "3"]
[White "Drygalov, Sergey"]
[Black "Bolourchifard, Farzad"]
[Result "1-0"]
[Board "14"]
[TimeControl "180+1"]
[WhiteFideId "24171743"]
[BlackFideId "12510084"]
[WhiteElo "3004"]
[BlackElo "2734"]
[WhiteTeam "RUS"]
[BlackTeam "IRI"]
[WhiteClock "0:01:56"]
[BlackClock "0:00:29"]

1. d4 {[%clk 0:03:00]}  Nf6 {[%clk 0:02:59]} 2. c4 {[%clk 0:03:01]}  e6 {[%clk 0:03:00]} 3. Nf3 {[%clk 0:03:01]}  d5 {[%clk 0:03:00]} 4. Nc3 {[%clk 0:03:02]}  Be7 {[%clk 0:03:00]} 5. Bf4 {[%clk 0:03:02]}  O-O {[%clk 0:03:00]} 6. e3 {[%clk 0:03:03]}  Nbd7 {[%clk 0:03:00]} 7. a3 {[%clk 0:03:02]}  c6 {[%clk 0:03:00]} 8. h3 {[%clk 0:02:53]}  a6 {[%clk 0:02:59]} 9. c5 {[%clk 0:02:53]}  b6 {[%clk 0:02:50]} 10. b4 {[%clk 0:02:52]}  a5 {[%clk 0:02:51]} 11. b5 {[%clk 0:02:49]}  Bb7 {[%clk 0:02:39]} 12. cxb6 {[%clk 0:02:48]}  c5 {[%clk 0:02:32]} 13. Bc7 {[%clk 0:02:38]}  Qc8 {[%clk 0:02:28]} 14. dxc5 {[%clk 0:02:33]}  Nxc5 {[%clk 0:01:41]} 15. Nd4 {[%clk 0:02:29]}  Ne8 {[%clk 0:01:34]} 16. Bg3 {[%clk 0:02:26]}  e5 {[%clk 0:01:22]} 17. Nc6 {[%clk 0:02:16]}  Bxc6 {[%clk 0:01:21]} 18. bxc6 {[%clk 0:02:17]}  d4 {[%clk 0:01:14]} 19. Nd5 {[%clk 0:02:13]}  Qe6 {[%clk 0:00:58]} 20. Bc4 {[%clk 0:02:12]}  Nd6 {[%clk 0:00:54]} 21. Ba2 {[%clk 0:02:12]}  Rac8 {[%clk 0:00:35]} 22. c7 {[%clk 0:02:05]}  Nde4 {[%clk 0:00:33]} 23. O-O {[%clk 0:01:57]}  Nc3 {[%clk 0:00:29]} 24. Nxc3 {[%clk 0:01:56]} 1-0